bitfinex/quotes_BTCUSD_20250916
["timestamp","ask_amount","ask_price","bid_price","bid_amount"]
[1758057553599,1.44083287,116850.0,116840.0,1e-08]
[1758057553812,1.71087287,116850.0,116840.0,1e-08]
[1758057554633,1.44083287,116850.0,116840.0,1e-08]
[1758057554873,1.71087287,116850.0,116840.0,1e-08]
[1758057555795,1.71087416,116850.0,116840.0,1e-08]
[1758057557846,1.44083416,116850.0,116840.0,1e-08]
[1758057558063,1.71087416,116850.0,116840.0,1e-08]
[1758057559620,1.71089446,116850.0,116840.0,1e-08]
[1758057563691,1.71092685,116850.0,116840.0,1e-08]
[1758057564330,0.17121821,116810.0,116800.0,0.01972]
[1758057564558,0.91631501,116810.0,116800.0,0.01972]
[1758057564754,0.64555889,116810.0,116800.0,0.02181]
[1758057564968,0.91559889,116810.0,116800.0,0.02181]
[1758057565206,0.94132332,116810.0,116800.0,0.02181]
[1758057565593,0.9414269,116810.0,116800.0,0.02281]
[1758057565771,0.9414269,116810.0,116800.0,0.02381]
[1758057566413,0.96217524,116810.0,116800.0,0.02381]
[1758057566911,0.96217524,116810.0,116800.0,0.02281]
[1758057567142,0.96317524,116810.0,116800.0,0.02181]
[1758057567493,0.96217524,116810.0,116800.0,0.02181]
[1758057567839,0.51086315,116810.0,116800.0,0.02181]
[1758057567973,0.96317524,116810.0,116800.0,0.02181]
[1758057568189,0.96519159,116810.0,116800.0,0.02181]
[1758057568890,0.96319159,116810.0,116800.0,0.02181]
[1758057569099,0.96519159,116810.0,116800.0,0.02181]
[1758057574482,1.05169304,116810.0,116800.0,0.02181]
[1758057575321,1.05171748,116810.0,116800.0,0.02181]
[1758057576491,1.05171748,116810.0,116800.0,0.00513]
[1758057577998,1.07746748,116810.0,116800.0,0.00209]
[1758057578413,1.05171748,116810.0,116800.0,0.00209]
[1758057578628,1.05171748,116810.0,116800.0,0.00528]
[1758057579816,1.05171748,116810.0,116800.0,0.02196]
[1758057579968,1.05172526,116810.0,116800.0,0.02196]
[1758057581663,1.07538526,116810.0,116800.0,0.00528]
[1758057582504,1.05172526,116810.0,116800.0,0.00528]
[1758057582929,1.05172937,116810.0,116800.0,0.00528]
[1758057585819,1.05220546,116810.0,116800.0,0.00528]
[1758057586218,1.01373278,116810.0,116800.0,0.00528]
[1758057588489,0.99770602,116810.0,116800.0,0.00528]
[1758057588697,0.72766602,116810.0,116800.0,0.00528]
[1758057588914,0.91112457,116810.0,116800.0,0.00528]
[1758057589187,0.91112457,116810.0,116800.0,0.02196]
[1758057589405,0.90511335,116810.0,116800.0,0.02196]
[1758057593160,0.90511335,116810.0,116800.0,0.00528]
[1758057593368,0.17123287,116800.0,116790.0,0.0001]
[1758057593604,0.17123287,116800.0,116790.0,0.01997]
[1758057593605,0.58626449,116800.0,116790.0,0.01997]
[1758057593803,0.58554837,116800.0,116790.0,0.02198]
[1758057594014,0.19695865,116800.0,116790.0,0.02198]
[1758057594433,0.19705865,116800.0,116790.0,0.02198]
[1758057594860,0.46701865,116800.0,116790.0,0.02198]
[1758057596817,0.19705865,116800.0,116790.0,0.02198]
[1758057597050,0.46697865,116800.0,116790.0,0.02198]
[1758057597680,0.46690162,116800.0,116790.0,0.02198]
[1758057598754,0.46690162,116800.0,116790.0,0.4362955]
[1758057598755,0.19698162,116800.0,116790.0,0.4362955]
[1758057598970,0.17133287,116800.0,116790.0,0.52279695]
[1758057599364,0.17133287,116800.0,116790.0,0.69404448]
[1758057600393,0.17133287,116800.0,116790.0,0.69504448]
[1758057600750,0.0001,116800.0,116790.0,0.69504448]
[1758057600972,0.17133287,116800.0,116790.0,0.52479695]
[1758057601196,0.17133287,116800.0,116790.0,0.9847323]
[1758057601398,0.17133287,116800.0,116790.0,0.96596448]
[1758057602601,0.17133287,116800.0,116790.0,0.79471695]
[1758057603371,0.17133287,116800.0,116790.0,0.96596448]
[1758057603575,0.17133287,116800.0,116790.0,1.36596448]
[1758057603800,0.17133287,116800.0,116790.0,0.78040145]
[1758057603988,0.17133287,116800.0,116790.0,0.79471695]
[1758057604585,0.17133287,116800.0,116790.0,1.19467695]
[1758057604768,0.17133287,116800.0,116790.0,0.78036145]
[1758057605312,0.17133287,116800.0,116790.0,0.51048145]
[1758057605511,0.17133287,116800.0,116790.0,0.78036145]
[1758057605858,0.17133287,116800.0,116790.0,1.19467695]
[1758057607152,0.17133287,116800.0,116790.0,0.78036145]
[1758057607716,0.17133287,116800.0,116790.0,1.19467695]
[1758057611003,0.17133287,116800.0,116790.0,0.78036145]
[1758057611219,0.17133287,116800.0,116790.0,1.19467695]
[1758057613419,0.17133287,116800.0,116790.0,0.51048145]
[1758057613622,0.17133287,116800.0,116790.0,1.19463695]
[1758057621346,0.0001,116800.0,116790.0,1.36588448]
[1758057623144,0.17133287,116800.0,116790.0,1.36588448]
[1758057623739,0.0001,116800.0,116790.0,1.36588448]
[1758057624405,0.17133287,116800.0,116790.0,1.36588448]
[1758057625697,0.0001,116800.0,116790.0,1.36588448]
[1758057625879,0.17133287,116800.0,116790.0,1.36584448]
[1758057626397,0.0001,116800.0,116790.0,1.36584448]
[1758057626608,0.17133287,116800.0,116790.0,1.36584448]
[1758057627388,0.17133287,116800.0,116790.0,0.92479695]
[1758057627595,0.17133287,116800.0,116790.0,1.19455695]
[1758057628302,0.17133287,116800.0,116790.0,1.36580448]
[1758057640584,0.17133287,116800.0,116790.0,1.19455695]
[1758057640738,0.17133287,116800.0,116790.0,1.19447695]
[1758057641510,0.17133287,116800.0,116790.0,0.92479695]
[1758057641741,0.17133287,116800.0,116790.0,1.19447695]
[1758057641887,0.17133287,116800.0,116790.0,0.78016145]
[1758057645085,0.17133287,116800.0,116790.0,0.38016145]
[1758057645515,0.17133287,116800.0,116790.0,0.78016145]
[1758057647076,0.17133287,116800.0,116790.0,0.51048145]
[1758057647305,0.17133287,116800.0,116790.0,0.78012145]
[1758057648000,0.17133287,116800.0,116790.0,1.23278394]
[1758057655477,0.17133287,116800.0,116790.0,0.83278394]
[1758057658445,0.17133287,116800.0,116790.0,0.11048145]
[1758057658656,0.17133287,116800.0,116790.0,0.83274394]
[1758057660747,0.17133287,116800.0,116790.0,0.38008145]
[1758057660905,0.17133287,116800.0,116790.0,0.83274394]
[1758057661110,0.17133287,116800.0,116790.0,0.83270394]
[1758057661725,0.17133287,116800.0,116790.0,0.11048145]
[1758057661977,0.62399536,116800.0,116790.0,0.38004145]
[1758057665360,0.62399536,116800.0,116790.0,0.11048145]
[1758057665619,0.62611536,116800.0,116790.0,0.09061145]
[1758057665837,0.65093536,116800.0,116790.0,0.36013145]
[1758057666030,0.65417536,116800.0,116790.0,0.09061145]
[1758057666315,0.65417536,116800.0,116790.0,0.27363]
[1758057667074,0.67989772,116800.0,116790.0,0.27363]
[1758057667506,0.67989772,116800.0,116790.0,0.27162]
[1758057667900,0.67665772,116800.0,116790.0,0.27367]
[1758057668100,0.67453772,116800.0,116790.0,0.27671]
[1758057668305,0.64971772,116800.0,116790.0,0.27671]
[1758057673253,0.64971772,116800.0,116790.0,0.27367]
[1758057673254,0.65183772,116800.0,116790.0,0.27367]
[1758057673462,0.67665772,116800.0,116790.0,0.27367]
[1758057674302,0.67989772,116800.0,116790.0,0.27367]
[1758057674493,0.67665772,116800.0,116790.0,0.27367]
[1758057683175,0.67989772,116800.0,116790.0,0.27367]
[1758057685260,0.72989772,116800.0,116790.0,0.0021]
[1758057686090,0.72989772,116800.0,116790.0,0.002]
[1758057687657,0.72989772,116800.0,116790.0,0.00405]
[1758057687868,0.96911772,116800.0,116790.0,0.00709]
[1758057688302,0.99605772,116800.0,116790.0,0.00405]
[1758057693405,0.99929772,116800.0,116790.0,0.00405]
[1758057697894,0.99929772,116800.0,116790.0,0.002]
[1758057704703,0.72989772,116800.0,116790.0,0.002]
[1758057704884,0.99921772,116800.0,116790.0,0.002]
[1758057709630,0.54655523,116800.0,116790.0,0.002]
[1758057709844,0.99940468,116800.0,116790.0,0.002]
[1758057710065,0.96092731,116800.0,116790.0,0.002]
[1758057710852,0.69160731,116800.0,116790.0,0.002]
[1758057711033,0.96088731,116800.0,116790.0,0.002]
[1758057716307,0.69160731,116800.0,116790.0,0.002]
[1758057716521,0.96084731,116800.0,116790.0,0.002]
[1758057722002,0.69160731,116800.0,116790.0,0.002]
[1758057722182,0.96080731,116800.0,116790.0,0.002]
[1758057729824,0.54643523,116800.0,116790.0,0.002]
[1758057729986,0.96080731,116800.0,116790.0,0.002]
[1758057732620,0.69160731,116800.0,116790.0,0.002]
[1758057732966,0.96068731,116800.0,116790.0,0.002]
[1758057735343,0.69160731,116800.0,116790.0,0.002]
[1758057735492,0.96068731,116800.0,116790.0,0.002]
[1758057735696,0.54631523,116800.0,116790.0,0.002]
[1758057735901,0.96068731,116800.0,116790.0,0.002]
[1758057738998,0.96068731,116800.0,116790.0,0.00406]
[1758057740513,0.96068731,116800.0,116790.0,0.002]
[1758057740743,0.96068731,116800.0,116790.0,0.0015]
[1758057741577,0.69160731,116800.0,116790.0,0.0015]
[1758057741709,0.96064731,116800.0,116790.0,0.0015]
[1758057744095,0.69160731,116800.0,116790.0,0.0015]
[1758057744308,0.96060731,116800.0,116790.0,0.0015]
[1758057745594,0.93042731,116800.0,116790.0,0.00356]
[1758057745797,0.93042731,116800.0,116790.0,0.02319]
[1758057745998,0.51605523,116800.0,116790.0,0.00651]
[1758057746224,0.93042731,116800.0,116790.0,0.02319]
[1758057746377,0.93042731,116800.0,116790.0,0.00651]
[1758057747780,0.66142731,116800.0,116790.0,0.00651]
[1758057748098,0.93038731,116800.0,116790.0,0.02319]
[1758057750267,0.93038731,116800.0,116790.0,0.00651]
[1758057750462,0.87960392,116800.0,116790.0,0.00651]
[1758057751386,0.87970392,116800.0,116790.0,0.00651]
[1758057757120,0.46525184,116800.0,116790.0,0.00651]
[1758057757339,0.87962392,116800.0,116790.0,0.00651]
[1758057759470,0.90560392,116800.0,116790.0,0.00356]
[1758057760763,0.87962392,116800.0,116790.0,0.00681]
[1758057762175,0.87962392,116800.0,116790.0,0.00356]
[1758057762315,0.90355392,116800.0,116790.0,0.00356]
[1758057762716,0.87962392,116800.0,116790.0,0.00356]
[1758057762929,0.87962392,116800.0,116790.0,0.00681]
[1758057767957,0.87962392,116800.0,116790.0,0.00356]
[1758057768174,0.90355392,116800.0,116790.0,0.00356]
[1758057768389,0.90560392,116800.0,116790.0,0.00356]
[1758057768896,0.88473392,116800.0,116790.0,0.0015]
[1758057769101,0.90866392,116800.0,116790.0,0.0015]
[1758057769826,0.90864132,116800.0,116790.0,0.0015]
[1758057770027,0.94711621,116800.0,116790.0,0.0015]
[1758057770852,0.94711621,116800.0,116790.0,0.0005]
[1758057786403,0.94691621,116800.0,116790.0,0.0005]
[1758057788320,0.67823621,116800.0,116790.0,0.0005]
[1758057788592,0.94687621,116800.0,116790.0,0.0005]
[1758057789325,1.02170321,116800.0,116790.0,0.0005]
[1758057790215,0.94687621,116800.0,116790.0,0.0005]
[1758057792787,0.67823621,116800.0,116790.0,0.0005]
[1758057793013,0.94687621,116800.0,116790.0,0.0005]
[1758057794362,1.40352956,116800.0,116790.0,0.0005]
[1758057794578,1.40953628,116800.0,116790.0,0.0005]
[1758057794790,1.51205558,116800.0,116790.0,0.0005]
[1758057795009,0.22124753,116790.0,116780.0,0.0001]
[1758057795137,0.6740719,116790.0,116780.0,0.0001]
[1758057795357,0.7023219,116790.0,116780.0,0.0001]
[1758057795804,1.04585185,116790.0,116780.0,0.0001]
[1758057796019,0.1712622,116780.0,116770.0,0.0001]
[1758057796259,0.89340269,116780.0,116770.0,0.0001]
[1758057796452,0.92103657,116780.0,116770.0,0.0001]
[1758057797312,0.94676517,116780.0,116770.0,0.0001]
[1758057797604,0.94776517,116780.0,116770.0,0.0001]
[1758057797763,0.99776517,116780.0,116770.0,0.0001]
[1758057798224,0.17127686,116770.0,116760.0,0.0001]
[1758057798432,0.62481735,116770.0,116760.0,0.0001]
[1758057798672,0.62616123,116770.0,116760.0,0.0001]
[1758057798892,0.72808109,116770.0,116760.0,0.0001]
[1758057799098,0.72818109,116770.0,116760.0,0.0001]
[1758057799558,0.72864966,116770.0,116760.0,0.0001]
[1758057799771,0.17129153,116760.0,116750.0,0.0001]
[1758057799992,0.67483202,116760.0,116750.0,0.0001]
[1758057800205,0.7024659,116760.0,116750.0,0.0001]
[1758057800420,0.1713062,116750.0,116740.0,0.00347]
[1758057800636,0.62413057,116750.0,116740.0,0.08997145]
[1758057800852,0.62413057,116750.0,116740.0,0.10875145]
[1758057801035,0.62619057,116750.0,116740.0,0.08910145]
[1758057801254,0.64986312,116750.0,116740.0,0.08910145]
[1758057801620,0.64996312,116750.0,116740.0,0.08910145]
[1758057802400,0.67300312,116750.0,116740.0,0.08910145]
[1758057802607,0.67300312,116750.0,116740.0,0.09110145]
[1758057802818,0.67506312,116750.0,116740.0,0.09110145]
[1758057803035,0.67821312,116750.0,116740.0,0.0025]
[1758057803253,0.72821312,116750.0,116740.0,0.0024]
[1758057804159,1.01063744,116750.0,116740.0,0.0024]
[1758057804370,1.01063744,116750.0,116740.0,0.0034]
[1758057805034,1.01063744,116750.0,116740.0,0.0024]
[1758057805298,1.01163744,116750.0,116740.0,0.0024]
[1758057805980,1.01163744,116750.0,116740.0,0.0004]
[1758057806232,1.01263744,116750.0,116740.0,0.0004]
[1758057806444,0.55981307,116750.0,116740.0,0.0004]
[1758057806667,1.01263744,116750.0,116740.0,0.0004]
[1758057809302,0.74407744,116750.0,116740.0,0.0004]
[1758057809512,1.01263744,116750.0,116740.0,0.0004]
[1758057810458,1.43913889,116750.0,116740.0,0.0004]
[1758057810676,1.17057889,116750.0,116740.0,0.0004]
[1758057810858,1.35263744,116750.0,116740.0,0.0004]
[1758057815777,0.63125307,116750.0,116740.0,0.0004]
[1758057815995,1.35263744,116750.0,116740.0,0.0004]
[1758057816414,1.37453955,116750.0,116740.0,0.0004]
[1758057816673,0.92171518,116750.0,116740.0,0.0004]
[1758057816886,1.37453955,116750.0,116740.0,0.0004]
[1758057817102,1.461041,116750.0,116740.0,0.0004]
[1758057818592,1.44511272,116750.0,116740.0,0.0004]
[1758057818793,1.46104294,116750.0,116740.0,0.0004]
[1758057820625,1.19248294,116750.0,116740.0,0.0004]
[1758057820884,1.46104294,116750.0,116740.0,0.0004]
[1758057824443,1.46101233,116750.0,116740.0,0.0004]
[1758057827540,1.19249233,116750.0,116740.0,0.0004]
[1758057827739,1.46101233,116750.0,116740.0,0.0004]
[1758057828467,1.46102133,116750.0,116740.0,0.0004]
[1758057829987,1.46146752,116750.0,116740.0,0.0004]
[1758057830194,1.4229549,116750.0,116740.0,0.0004]
[1758057830997,1.42301156,116750.0,116740.0,0.0004]
[1758057831232,1.15449156,116750.0,116740.0,0.0004]
[1758057831413,1.42580056,116750.0,116740.0,0.0004]
[1758057832849,1.41980834,116750.0,116740.0,0.0004]
[1758057832980,1.42580643,116750.0,116740.0,0.0004]
[1758057833783,0.17132088,116740.0,116730.0,0.003461]
[1758057833985,0.88022991,116740.0,116730.0,0.003461]
[1758057834212,0.88164379,116740.0,116730.0,0.003461]
[1758057834489,0.88164379,116740.0,116730.0,0.005621]
[1758057834490,0.90484379,116740.0,116730.0,0.005621]
[1758057834674,0.92520379,116740.0,116730.0,0.005621]
[1758057835188,0.92520652,116740.0,116730.0,0.005621]
[1758057835400,0.92522372,116740.0,116730.0,0.005621]
[1758057837160,0.89915372,116740.0,116730.0,0.005621]
[1758057837826,0.92225372,116740.0,116730.0,0.005621]
[1758057839260,0.92522372,116740.0,116730.0,0.003461]
[1758057840744,0.92522882,116740.0,116730.0,0.003461]
[1758057841148,0.92524053,116740.0,116730.0,0.003461]
[1758057841446,0.97724053,116740.0,116730.0,0.003461]
[1758057841864,0.97524053,116740.0,116730.0,0.003461]
[1758057842097,0.97724053,116740.0,116730.0,0.005621]
[1758057843078,0.68056053,116740.0,116730.0,0.005621]
[1758057843283,0.94900053,116740.0,116730.0,0.008821]
[1758057844262,0.97396053,116740.0,116730.0,0.008821]
[1758057844462,0.97396053,116740.0,116730.0,0.005621]
[1758057844921,0.97603053,116740.0,116730.0,0.005621]
[1758057850318,0.96001474,116740.0,116730.0,0.005621]
[1758057851280,0.95400882,116740.0,116730.0,0.005621]
[1758057853807,0.95718882,116740.0,116730.0,0.003461]
[1758057856904,0.54243088,116740.0,116730.0,0.005561]
[1758057857140,0.95718882,116740.0,116730.0,0.005561]
[1758057862313,0.95718882,116740.0,116730.0,0.003461]
[1758057862716,0.95718882,116740.0,116730.0,0.005561]
[1758057863668,0.95400882,116740.0,116730.0,0.005561]
[1758057864756,0.95718882,116740.0,116730.0,0.005561]
[1758057866946,0.66060882,116740.0,116730.0,0.005561]
[1758057867155,0.92685882,116740.0,116730.0,0.005561]
[1758057867370,0.92685882,116740.0,116730.0,0.008741]
[1758057867558,0.92685882,116740.0,116730.0,0.005561]
[1758057867772,0.95388882,116740.0,116730.0,0.005561]
[1758057882658,0.54226088,116740.0,116730.0,0.005561]
[1758057882873,0.95701882,116740.0,116730.0,0.005561]
[1758057884334,0.95701882,116740.0,116730.0,0.003461]
[1758057892005,0.93165611,116740.0,116730.0,0.003461]
[1758057892128,0.97017274,116740.0,116730.0,0.003461]
[1758057894885,0.97017274,116740.0,116730.0,0.003421]
[1758057901145,0.96997274,116740.0,116730.0,0.003421]
[1758057904010,0.92052971,116740.0,116730.0,0.003421]
[1758057912349,0.92044971,116740.0,116730.0,0.003421]
[1758057913353,0.65240971,116740.0,116730.0,0.003421]
[1758057913547,0.92044971,116740.0,116730.0,0.003421]
[1758057913752,0.65240971,116740.0,116730.0,0.003421]
[1758057914181,0.92044971,116740.0,116730.0,0.003421]
[1758057918607,0.65240971,116740.0,116730.0,0.003421]
[1758057918735,0.92044971,116740.0,116730.0,0.003421]
[1758057924268,1.3243206,116740.0,116730.0,0.003421]
[1758057924900,0.92044971,116740.0,116730.0,0.003421]
[1758057925588,1.3243206,116740.0,116730.0,0.003421]
[1758057932470,1.3242406,116740.0,116730.0,0.003421]
[1758057934862,1.0562806,116740.0,116730.0,0.003421]
[1758057935076,1.3242006,116740.0,116730.0,0.003421]
[1758057935825,1.0562806,116740.0,116730.0,0.003421]
[1758057936053,1.3242006,116740.0,116730.0,0.003421]
[1758057936535,1.0562806,116740.0,116730.0,0.003421]
[1758057936749,0.24853882,116740.0,116730.0,0.003421]
[1758057936948,0.92032971,116740.0,116730.0,0.003421]
[1758057938917,1.3242006,116740.0,116730.0,0.003421]
[1758057940718,1.3241606,116740.0,116730.0,0.003421]
[1758057941743,1.78081395,116740.0,116730.0,0.003421]
[1758057941974,1.80280222,116740.0,116730.0,0.003421]
[1758057942371,1.79680542,116740.0,116730.0,0.003421]
[1758057943077,1.80280081,116740.0,116730.0,0.003421]
[1758057948269,1.88930226,116740.0,116730.0,0.003421]
[1758057950080,1.62142226,116740.0,116730.0,0.003421]
[1758057950290,1.88930226,116740.0,116730.0,0.003421]
[1758057951853,1.44062461,116740.0,116730.0,0.003421]
[1758057953331,1.08156048,116740.0,116730.0,0.003421]
[1758057953541,1.44062461,116740.0,116730.0,0.003421]
[1758057954536,1.17274461,116740.0,116730.0,0.003421]
[1758057954737,1.41863775,116740.0,116730.0,0.003421]
[1758057957420,1.15075775,116740.0,116730.0,0.003421]
[1758057957640,1.41863775,116740.0,116730.0,0.003421]
[1758057965294,1.42462851,116740.0,116730.0,0.003421]
[1758057966355,1.44060577,116740.0,116730.0,0.003421]
[1758057970888,1.44061054,116740.0,116730.0,0.003421]
[1758057971114,1.08154641,116740.0,116730.0,0.003421]
[1758057971329,1.44061054,116740.0,116730.0,0.003421]
[1758057975154,1.44058689,116740.0,116730.0,0.003421]
[1758057980319,1.44054689,116740.0,116730.0,0.003421]
[1758057982427,1.4405498,116740.0,116730.0,0.003421]
[1758057988540,1.1727498,116740.0,116730.0,0.003421]
[1758057988755,1.4405498,116740.0,116730.0,0.003421]
[1758057990321,1.44055029,116740.0,116730.0,0.003421]
[1758057991133,1.17275029,116740.0,116730.0,0.003421]
[1758057991340,1.44055029,116740.0,116730.0,0.003421]
[1758057993293,1.17275029,116740.0,116730.0,0.003421]
[1758057993551,1.44055029,116740.0,116730.0,0.003421]
[1758057997842,1.17275029,116740.0,116730.0,0.003421]
[1758057998048,1.44041545,116740.0,116730.0,0.005571]
[1758057998411,1.44041545,116740.0,116730.0,0.003421]
[1758057999766,1.44037545,116740.0,116730.0,0.003421]
[1758058001136,1.42437709,116740.0,116730.0,0.003421]
[1758058002195,1.15661709,116740.0,116730.0,0.003421]
[1758058002440,1.42437709,116740.0,116730.0,0.003421]
[1758058003249,1.41837775,116740.0,116730.0,0.003421]
[1758058005264,0.79155362,116740.0,116730.0,0.003421]
[1758058005475,1.18520295,116740.0,116730.0,0.008801]
[1758058005884,1.21208295,116740.0,116730.0,0.005571]
[1758058006282,1.21518295,116740.0,116730.0,0.003421]
[1758058013945,1.25999307,116740.0,116730.0,0.003421]
[1758058017778,0.85611882,116740.0,116730.0,0.003421]
[1758058017960,1.25999307,116740.0,116730.0,0.003421]
[1758058022948,0.85301882,116740.0,116730.0,0.005421]
[1758058023163,1.26007307,116740.0,116730.0,0.003421]
[1758058024773,0.85619882,116740.0,116730.0,0.003421]
[1758058024982,1.26007307,116740.0,116730.0,0.003421]
[1758058027007,1.26007307,116740.0,116730.0,0.00213824]
[1758058027166,1.36857137,116740.0,116730.0,0.00213824]
[1758058030002,1.36857142,116740.0,116730.0,0.00213824]
[1758058036718,0.96469717,116740.0,116730.0,0.00213824]
[1758058036931,1.36857142,116740.0,116730.0,0.00213824]
[1758058041822,0.96469717,116740.0,116730.0,0.00213824]
[1758058042041,1.36857283,116740.0,116730.0,0.00213824]
[1758058046083,1.35257512,116740.0,116730.0,0.00213824]
[1758058046197,1.36857787,116740.0,116730.0,0.00213824]
[1758058047480,0.69694362,116740.0,116730.0,0.00213824]
[1758058047697,1.36849787,116740.0,116730.0,0.00213824]
[1758058048155,0.58244217,116740.0,116730.0,0.00426824]
[1758058048377,1.23005307,116740.0,116730.0,0.02394824]
[1758058048593,1.23005307,116740.0,116730.0,0.00726824]
[1758058049234,0.82617882,116740.0,116730.0,0.00726824]
[1758058049471,1.23005307,116740.0,116730.0,0.00726824]
[1758058049886,0.82617882,116740.0,116730.0,0.00726824]
[1758058050116,1.23201307,116740.0,116730.0,0.00426824]
[1758058052742,1.25448307,116740.0,116730.0,0.00726824]
[1758058053165,0.85060882,116740.0,116730.0,0.00726824]
[1758058053372,1.25448307,116740.0,116730.0,0.00726824]
[1758058054562,1.25647307,116740.0,116730.0,0.00426824]
[1758058055333,0.85060882,116740.0,116730.0,0.00426824]
[1758058055591,1.25448307,116740.0,116730.0,0.00426824]
[1758058055799,1.34098452,116740.0,116730.0,0.00426824]
[1758058056167,1.25647307,116740.0,116730.0,0.00426824]
[1758058057810,1.23005307,116740.0,116730.0,0.00740824]
[1758058058456,1.25457307,116740.0,116730.0,0.00426824]
[1758058061278,1.23005307,116740.0,116730.0,0.00426824]
[1758058061479,1.23005307,116740.0,116730.0,0.41128249]
[1758058061480,0.21837882,116740.0,116730.0,0.41128249]
[1758058061685,0.89233307,116740.0,116730.0,0.02408824]
[1758058062097,0.48845882,116740.0,116730.0,0.02408824]
[1758058062297,0.89233307,116740.0,116730.0,0.02408824]
[1758058065472,1.23233307,116740.0,116730.0,0.02408824]
[1758058068751,1.23233307,116740.0,116730.0,0.00740824]
[1758058072217,1.23432307,116740.0,116730.0,0.00426824]
[1758058072432,1.25981307,116740.0,116730.0,0.00426824]
[1758058072837,1.25685307,116740.0,116730.0,0.00426824]
[1758058074621,0.85297882,116740.0,116730.0,0.00426824]
[1758058074833,1.25685307,116740.0,116730.0,0.00426824]
[1758058075962,0.85297882,116740.0,116730.0,0.00426824]
[1758058077956,1.2150801,116740.0,116730.0,0.00416824]
[1758058078142,0.85297882,116740.0,116730.0,0.00416824]
[1758058082112,0.83044882,116740.0,116730.0,0.00416824]
[1758058082355,0.85692882,116740.0,116730.0,0.00213824]
[1758058082763,0.85692882,116740.0,116730.0,0.00416824]
[1758058085341,0.58684882,116740.0,116730.0,0.00416824]
[1758058085537,0.83000882,116740.0,116730.0,0.00416824]
[1758058085734,0.85442882,116740.0,116730.0,0.00416824]
[1758058086485,1.2133301,116740.0,116730.0,0.00416824]
[1758058091325,0.85442882,116740.0,116730.0,0.00416824]
[1758058091532,1.2133301,116740.0,116730.0,0.00416824]
[1758058092008,0.85442882,116740.0,116730.0,0.00416824]
[1758058092218,1.2133301,116740.0,116730.0,0.00416824]
[1758058094401,0.85406882,116740.0,116730.0,0.00416824]
[1758058094604,1.2129701,116740.0,116730.0,0.00416824]
[1758058095586,0.85406882,116740.0,116730.0,0.00416824]
[1758058095786,1.2129701,116740.0,116730.0,0.00416824]
[1758058100924,0.9436901,116740.0,116730.0,0.00416824]
[1758058101154,1.2128501,116740.0,116730.0,0.00416824]
[1758058103062,1.2158001,116740.0,116730.0,0.00416824]
[1758058103462,1.2128501,116740.0,116730.0,0.00416824]
[1758058111528,1.2158001,116740.0,116730.0,0.00416824]
[1758058111837,1.21571698,116740.0,116730.0,0.00416824]
[1758058116434,0.8568157,116740.0,116730.0,0.00416824]
[1758058116666,1.21571698,116740.0,116730.0,0.00416824]
[1758058117296,1.21276698,116740.0,116730.0,0.00416824]
[1758058123812,0.94360698,116740.0,116730.0,0.00416824]
[1758058124010,1.21208698,116740.0,116730.0,0.00416824]
[1758058125983,0.94360698,116740.0,116730.0,0.00416824]
[1758058126204,1.21204698,116740.0,116730.0,0.00416824]
[1758058127744,1.21196698,116740.0,116730.0,0.00416824]
[1758058135083,0.8529057,116740.0,116730.0,0.00416824]
[1758058135288,1.21180698,116740.0,116730.0,0.00416824]
[1758058137822,1.25668524,116740.0,116730.0,0.00416824]
[1758058143906,1.25975524,116740.0,116730.0,0.00416824]
[1758058144272,1.25668524,116740.0,116730.0,0.00416824]
[1758058146602,1.25652524,116740.0,116730.0,0.00416824]
[1758058151413,1.25959524,116740.0,116730.0,0.00416824]
[1758058154435,0.89007524,116740.0,116730.0,0.00734824]
[1758058154592,0.89007524,116740.0,116730.0,0.00744824]
[1758058154803,0.91504524,116740.0,116730.0,0.00426824]
[1758058159814,0.91811524,116740.0,116730.0,0.00426824]
[1758058163466,0.91811524,116740.0,116730.0,0.00223824]
[1758058177235,0.2463357,116740.0,116730.0,0.00223824]
[1758058177395,0.91811524,116740.0,116730.0,0.00223824]
[1758058178693,0.65011524,116740.0,116730.0,0.00223824]
[1758058184913,0.5142957,116740.0,116730.0,0.00223824]
[1758058185240,0.91807524,116740.0,116730.0,0.00223824]
[1758058197660,0.91807524,116740.0,116730.0,0.1735738]
[1758058198654,0.91807524,116740.0,116730.0,0.00223824]
[1758058199828,0.87321385,116740.0,116730.0,0.00223824]
[1758058200632,0.87321385,116740.0,116730.0,0.1735738]
[1758058200633,0.87317385,116740.0,116730.0,0.1735738]
[1758058200856,0.87317385,116740.0,116730.0,0.00223824]
[1758058201046,0.2463357,116740.0,116730.0,0.1757038]
[1758058201251,0.5142557,116740.0,116730.0,0.1757038]
[1758058201882,0.24378088,116740.0,116730.0,0.1786738]
[1758058202056,0.24378088,116740.0,116730.0,0.1953538]
[1758058202892,0.07246,116740.0,116730.0,0.1953538]
[1758058203097,0.24378088,116740.0,116730.0,0.1953538]
[1758058203512,0.24278088,116740.0,116730.0,0.1953538]
[1758058203740,0.24178088,116740.0,116730.0,0.1953538]
[1758058203880,0.24178088,116740.0,116730.0,0.1963538]
[1758058204104,0.07046,116740.0,116730.0,0.1963538]
[1758058204312,0.24178088,116740.0,116730.0,0.1963538]
[1758058205368,0.02046,116740.0,116730.0,0.6250934]
[1758058205571,0.02046,116740.0,116730.0,0.6417734]
[1758058207688,0.0001,116740.0,116730.0,0.9096934]
[1758058208274,0.02583342,116750.0,116740.0,0.17132088]
[1758058208476,0.02583342,116750.0,116740.0,0.56698111]
[1758058208676,0.02583342,116750.0,116740.0,0.55190903]
[1758058208888,0.02583342,116750.0,116740.0,0.81982903]
[1758058209323,0.02583342,116750.0,116740.0,0.46091088]
[1758058209527,0.02583342,116750.0,116740.0,0.55190903]
[1758058209741,0.02683342,116750.0,116740.0,0.55190903]
[1758058209974,0.02683342,116750.0,116740.0,0.81988903]
[1758058210366,0.02683342,116750.0,116740.0,0.90639048]
[1758058212998,0.02683342,116750.0,116740.0,1.30639048]
[1758058213947,0.02683342,116750.0,116740.0,1.03851048]
[1758058214170,0.02683342,116750.0,116740.0,1.30639048]
[1758058214390,0.02683342,116750.0,116740.0,1.30739048]
[1758058215112,0.02583342,116750.0,116740.0,1.30739048]
[1758058215604,0.02583342,116750.0,116740.0,1.30639048]
[1758058216259,0.02583342,116750.0,116740.0,1.30839048]
[1758058216481,0.02583342,116750.0,116740.0,1.31039048]
[1758058216699,0.02583342,116750.0,116740.0,1.04251048]
[1758058216919,0.02583342,116750.0,116740.0,1.31039048]
[1758058219777,0.0001,116750.0,116740.0,1.31039048]
[1758058220323,0.0001,116750.0,116740.0,1.31035048]
[1758058228061,0.02583092,116760.0,116750.0,0.1713062]